[Event "*** Titled Tuesday 3|2 Blitz"]
[Site "Chess.com"]
[Date "2017.05.02"]
[Round "2"]
[White "Mbneu"]
[Black "Boryboy"]
[Result "0-1"]
[WhiteElo "2146"]
[BlackElo "2308"]
[TimeControl "180+2"]
[EndTime "13:18:54 PDT"]
[Termination "Boryboy won by resignation"]

1. d4 {[%clk 0:03:02]} 1... e6 {[%clk 0:02:59.8]} 2. c4 {[%clk 0:03:02.5]} 2...
Nf6 {[%clk 0:02:50.5]} 3. Nc3 {[%clk 0:03:02.4]} 3... d5 {[%clk 0:02:51.5]} 4.
Nf3 {[%clk 0:03:02.4]} 4... Nbd7 {[%clk 0:02:52.1]} 5. g3 {[%clk 0:03:03.2]}
5... c6 {[%clk 0:02:52.2]} 6. Bg2 {[%clk 0:03:04.5]} 6... Bd6 {[%clk 0:02:53.5]}
7. O-O {[%clk 0:03:05.5]} 7... O-O {[%clk 0:02:54.8]} 8. Bf4 {[%clk 0:03:06.9]}
8... Bxf4 {[%clk 0:02:55.2]} 9. gxf4 {[%clk 0:03:08.8]} 9... dxc4 {[%clk
0:02:56.4]} 10. e3 {[%clk 0:03:05.9]} 10... b5 {[%clk 0:02:55.1]} 11. Nd2 {[%clk
0:03:06.4]} 11... Qb6 {[%clk 0:02:50.1]} 12. Kh1 {[%clk 0:03:06.4]} 12... Bb7
{[%clk 0:02:51.1]} 13. Rg1 {[%clk 0:03:06.8]} 13... c5 {[%clk 0:02:52.3]} 14.
Nde4 {[%clk 0:02:59.2]} 14... Nxe4 {[%clk 0:02:52.5]} 15. Nxe4 {[%clk
0:02:59.4]} 15... cxd4 {[%clk 0:02:53.9]} 16. exd4 {[%clk 0:03:00]} 16... Kh8
{[%clk 0:02:43.4]} 17. Qh5 {[%clk 0:02:59.3]} 17... Bxe4 {[%clk 0:02:35.1]} 18.
Bxe4 {[%clk 0:02:54.8]} 18... g6 {[%clk 0:02:34.7]} 19. Qh4 {[%clk 0:02:13]}
19... Rad8 {[%clk 0:02:31.1]} 20. Rg3 {[%clk 0:02:11.4]} 20... Qxd4 {[%clk
0:02:30.2]} 21. Bf3 {[%clk 0:02:04.9]} 21... Qf6 {[%clk 0:02:27.6]} 22. Qh6
{[%clk 0:01:58.6]} 22... Qxb2 {[%clk 0:02:26.4]} 23. Rag1 {[%clk 0:01:57.7]}
23... Qg7 {[%clk 0:02:27.1]} 24. Qg5 {[%clk 0:01:57.1]} 24... a6 {[%clk
0:02:25.7]} 25. Rh3 {[%clk 0:01:57.1]} 25... Nf6 {[%clk 0:02:21.3]} 26. Bb7
{[%clk 0:01:49.9]} 26... Rd6 {[%clk 0:02:19.6]} 27. Qc5 {[%clk 0:01:05.1]} 27...
Rfd8 {[%clk 0:02:14.6]} 28. Re3 {[%clk 0:00:54.9]} 28... Nd5 {[%clk 0:02:13.6]}
29. Re4 {[%clk 0:00:51.5]} 29... Qf6 {[%clk 0:02:10.4]} 30. Qc7 {[%clk
0:00:40.2]} 30... R6d7 {[%clk 0:02:04.5]} 31. Qc6 {[%clk 0:00:40]} 31... Nb4
{[%clk 0:01:57.9]} 32. Qb6 {[%clk 0:00:37]} 32... Rb8 {[%clk 0:01:57]} 33. Qc5
{[%clk 0:00:33.5]} 33... Nd3 {[%clk 0:01:57]} 0-1

[Event "*** Titled Tuesday 3|2 Blitz"]
[Site "Chess.com"]
[Date "2017.05.02"]
[Round "2"]
[White "Ilja_Semjonovs"]
[Black "heartofatiger"]
[Result "1-0"]
[WhiteElo "2236"]
[BlackElo "1562"]
[TimeControl "180+2"]
[EndTime "13:19:38 PDT"]
[Termination "Ilja_Semjonovs won by checkmate"]

1. d4 {[%clk 0:03:01.1]} 1... Nf6 {[%clk 0:03:00.7]} 2. Nf3 {[%clk 0:03:02]}
2... g6 {[%clk 0:03:02.2]} 3. Bg5 {[%clk 0:03:02.6]} 3... Bg7 {[%clk 0:03:03.7]}
4. Bxf6 {[%clk 0:03:02.6]} 4... Bxf6 {[%clk 0:03:03.4]} 5. c3 {[%clk 0:03:01.7]}
5... O-O {[%clk 0:03:01.9]} 6. Nbd2 {[%clk 0:02:59.2]} 6... d6 {[%clk
0:03:01.2]} 7. e3 {[%clk 0:02:59.5]} 7... e5 {[%clk 0:03:01.8]} 8. Bd3 {[%clk
0:03:00.1]} 8... Qe7 {[%clk 0:03:02.1]} 9. Qc2 {[%clk 0:03:00.7]} 9... c6 {[%clk
0:03:00.9]} 10. O-O-O {[%clk 0:02:59.5]} 10... Nd7 {[%clk 0:03:00.9]} 11. h4
{[%clk 0:02:59.7]} 11... h5 {[%clk 0:02:49.6]} 12. dxe5 {[%clk 0:02:46.3]} 12...
Nxe5 {[%clk 0:02:48.7]} 13. Nxe5 {[%clk 0:02:46.5]} 13... dxe5 {[%clk
0:02:49.3]} 14. Kb1 {[%clk 0:02:38]} 14... b5 {[%clk 0:02:48.8]} 15. Be4 {[%clk
0:02:36.6]} 15... Bd7 {[%clk 0:02:47.7]} 16. Nf3 {[%clk 0:02:32.5]} 16... Rab8
{[%clk 0:02:46.3]} 17. Ng5 {[%clk 0:02:16]} 17... Be8 {[%clk 0:02:32.4]} 18. f4
{[%clk 0:02:12.1]} 18... exf4 {[%clk 0:02:33.1]} 19. exf4 {[%clk 0:02:13.2]}
19... b4 {[%clk 0:02:34.4]} 20. c4 {[%clk 0:02:08.8]} 20... a5 {[%clk
0:02:29.9]} 21. g4 {[%clk 0:02:08.8]} 21... hxg4 {[%clk 0:02:26.1]} 22. h5
{[%clk 0:02:08.1]} 22... Bxg5 {[%clk 0:02:18.7]} 23. fxg5 {[%clk 0:02:08.7]}
23... Qxg5 {[%clk 0:02:20.2]} 24. hxg6 {[%clk 0:02:03.4]} 24... f5 {[%clk
0:01:18.5]} 25. Qh2 {[%clk 0:01:44]} 25... Bxg6 {[%clk 0:01:04.1]} 26. Qh8+
{[%clk 0:01:35.4]} 26... Kf7 {[%clk 0:01:03.5]} 27. Rh7+ {[%clk 0:01:29.1]}
27... Bxh7 {[%clk 0:00:45]} 28. Qxh7+ {[%clk 0:01:29]} 28... Kf6 {[%clk
0:00:46.3]} 29. Bxc6 {[%clk 0:01:13.7]} 29... Rbd8 {[%clk 0:00:46.5]} 30. Re1
{[%clk 0:01:11.6]} 30... Qd2 {[%clk 0:00:43.3]} 31. Qe7+ {[%clk 0:01:11.5]}
31... Kg6 {[%clk 0:00:43.6]} 32. Re6+ {[%clk 0:01:09.8]} 32... Kh5 {[%clk
0:00:40.8]} 33. Qh7+ {[%clk 0:01:10.4]} 33... Kg5 {[%clk 0:00:41.8]} 34. Qh6#
{[%clk 0:01:10.5]} 1-0

[Event "*** Titled Tuesday 3|2 Blitz"]
[Site "Chess.com"]
[Date "2017.05.02"]
[Round "2"]
[White "pawnwonder"]
[Black "Wolverine_master"]
[Result "1-0"]
[WhiteElo "1840"]
[BlackElo "1944"]
[TimeControl "180+2"]
[EndTime "13:19:42 PDT"]
[Termination "pawnwonder won on time"]

1. e4 {[%clk 0:03:02]} 1... d5 {[%clk 0:03:00.7]} 2. exd5 {[%clk 0:03:02.5]}
2... Qxd5 {[%clk 0:03:02.6]} 3. Nc3 {[%clk 0:03:02.8]} 3... Qd6 {[%clk
0:03:03.7]} 4. d4 {[%clk 0:03:03.2]} 4... Nf6 {[%clk 0:03:05.1]} 5. Nf3 {[%clk
0:03:04.3]} 5... a6 {[%clk 0:03:06.7]} 6. Be2 {[%clk 0:03:03.6]} 6... Nc6 {[%clk
0:03:08.2]} 7. O-O {[%clk 0:03:03.3]} 7... Bg4 {[%clk 0:03:09.2]} 8. Be3 {[%clk
0:03:04.2]} 8... O-O-O {[%clk 0:03:10.2]} 9. Ng5 {[%clk 0:02:24.5]} 9... Be6
{[%clk 0:02:23.5]} 10. Nf3 {[%clk 0:02:08.6]} 10... h6 {[%clk 0:02:23.2]} 11. h3
{[%clk 0:02:08.3]} 11... g5 {[%clk 0:02:23.4]} 12. Na4 {[%clk 0:02:01.4]} 12...
g4 {[%clk 0:02:23.3]} 13. hxg4 {[%clk 0:01:59.6]} 13... Bxg4 {[%clk 0:02:20.1]}
14. c3 {[%clk 0:02:00.6]} 14... Rg8 {[%clk 0:02:20.4]} 15. g3 {[%clk 0:01:54.3]}
15... Bh3 {[%clk 0:02:20]} 16. Bf4 {[%clk 0:01:54.5]} 16... Qd5 {[%clk
0:01:38.4]} 17. Nc5 {[%clk 0:01:31.3]} 17... Bxf1 {[%clk 0:01:27.9]} 18. Qxf1
{[%clk 0:01:21.3]} 18... Qf5 {[%clk 0:00:53.4]} 19. Bxa6 {[%clk 0:01:10.2]}
19... Qxf4 {[%clk 0:00:48.1]} 20. Bxb7+ {[%clk 0:01:06.9]} 20... Kb8 {[%clk
0:00:46.8]} 21. Qa6 {[%clk 0:01:07.1]} 21... Rxg3+ {[%clk 0:00:32.8]} 22. Kf1
{[%clk 0:01:07.7]} 22... Na7 {[%clk 0:00:20.9]} 23. Ne5 {[%clk 0:01:06.7]} 23...
Rd6 {[%clk 0:00:05.8]} 24. Bc6 {[%clk 0:01:06.3]} 24... Rg1+ {[%clk 0:00:02.4]}
25. Kxg1 {[%clk 0:00:57.8]} 1-0

[Event "*** Titled Tuesday 3|2 Blitz"]
[Site "Chess.com"]
[Date "2017.05.02"]
[Round "2"]
[White "severomorskij"]
[Black "Iball95"]
[Result "1-0"]
[WhiteElo "2685"]
[BlackElo "2501"]
[TimeControl "180+2"]
[EndTime "13:20:03 PDT"]
[Termination "severomorskij won by resignation"]

1. d4 {[%clk 0:02:59.5]} 1... Nf6 {[%clk 0:02:59.6]} 2. Bg5 {[%clk 0:02:57.2]}
2... Ne4 {[%clk 0:02:59.2]} 3. Bf4 {[%clk 0:02:58.4]} 3... d5 {[%clk 0:03:00.1]}
4. f3 {[%clk 0:02:57.4]} 4... Nf6 {[%clk 0:03:00.7]} 5. e4 {[%clk 0:02:58.9]}
5... dxe4 {[%clk 0:02:54.5]} 6. Nc3 {[%clk 0:02:59.2]} 6... exf3 {[%clk
0:02:51.3]} 7. Nxf3 {[%clk 0:03:00.2]} 7... c6 {[%clk 0:02:52.7]} 8. Bc4 {[%clk
0:03:00.2]} 8... Bf5 {[%clk 0:02:53.3]} 9. Ne5 {[%clk 0:02:57.5]} 9... e6 {[%clk
0:02:54.4]} 10. Qf3 {[%clk 0:02:53.8]} 10... Nbd7 {[%clk 0:02:53.6]} 11. O-O-O
{[%clk 0:02:54.4]} 11... Be7 {[%clk 0:02:44.7]} 12. g4 {[%clk 0:02:52.6]} 12...
Bg6 {[%clk 0:02:38.3]} 13. h4 {[%clk 0:02:52.8]} 13... Nd5 {[%clk 0:02:05.8]}
14. Bxd5 {[%clk 0:02:22.5]} 14... exd5 {[%clk 0:01:47.3]} 15. h5 {[%clk
0:02:21.9]} 15... Be4 {[%clk 0:01:40.8]} 16. Nxe4 {[%clk 0:02:22]} 16... dxe4
{[%clk 0:01:42.7]} 17. Qxe4 {[%clk 0:02:23.5]} 17... Nf6 {[%clk 0:01:37.9]} 18.
Qd3 {[%clk 0:02:08.2]} 18... Nd5 {[%clk 0:01:36.1]} 19. Bd2 {[%clk 0:02:07.2]}
19... Bg5 {[%clk 0:01:22.7]} 20. Kb1 {[%clk 0:02:00.1]} 20... h6 {[%clk
0:01:16.1]} 21. c4 {[%clk 0:01:54.1]} 21... Nc7 {[%clk 0:01:10]} 22. Bb4 {[%clk
0:01:50.7]} 22... Na6 {[%clk 0:00:36.2]} 23. Ba3 {[%clk 0:01:49]} 23... Qc7
{[%clk 0:00:37.3]} 24. Qf5 {[%clk 0:01:39]} 24... c5 {[%clk 0:00:21.6]} 25. Ng6
{[%clk 0:01:24.5]} 25... fxg6 {[%clk 0:00:17.6]} 26. Rhe1+ {[%clk 0:01:26]}
26... Be7 {[%clk 0:00:16]} 27. Qxg6+ {[%clk 0:01:23.6]} 27... Kf8 {[%clk
0:00:15.3]} 28. dxc5 {[%clk 0:01:21.9]} 28... Kg8 {[%clk 0:00:16.4]} 29. Qe6+
{[%clk 0:01:21.1]} 29... Kh7 {[%clk 0:00:09]} 30. Qe4+ {[%clk 0:01:22]} 30...
Kg8 {[%clk 0:00:09.6]} 31. Qxe7 {[%clk 0:01:23.5]} 31... Qxe7 {[%clk 0:00:08.6]}
32. Rxe7 {[%clk 0:01:25]} 32... Rc8 {[%clk 0:00:04.6]} 33. Rdd7 {[%clk
0:01:21.3]} 33... Rh7 {[%clk 0:00:06.1]} 34. Rxb7 {[%clk 0:01:21.3]} 1-0

[Event "*** Titled Tuesday 3|2 Blitz"]
[Site "Chess.com"]
[Date "2017.05.02"]
[Round "2"]
[White "Robin-Side"]
[Black "maciek_92"]
[Result "0-1"]
[WhiteElo "2254"]
[BlackElo "2503"]
[TimeControl "180+2"]
[EndTime "13:20:28 PDT"]
[Termination "maciek_92 won by resignation"]

1. e4 {[%clk 0:03:02]} 1... c5 {[%clk 0:03:00.5]} 2. Nf3 {[%clk 0:03:02.7]} 2...
Nc6 {[%clk 0:03:01.5]} 3. Nc3 {[%clk 0:03:03.3]} 3... g6 {[%clk 0:03:02.2]} 4.
d4 {[%clk 0:03:03.9]} 4... cxd4 {[%clk 0:03:04.1]} 5. Nxd4 {[%clk 0:03:05]} 5...
Bg7 {[%clk 0:03:05.7]} 6. Nb3 {[%clk 0:03:05.9]} 6... Nf6 {[%clk 0:03:06.8]} 7.
Be2 {[%clk 0:03:06.4]} 7... O-O {[%clk 0:03:08.3]} 8. O-O {[%clk 0:03:06.9]}
8... a5 {[%clk 0:03:09.8]} 9. a4 {[%clk 0:03:06.8]} 9... d6 {[%clk 0:03:10]} 10.
Bg5 {[%clk 0:03:07.5]} 10... Be6 {[%clk 0:03:11.2]} 11. Kh1 {[%clk 0:03:01.8]}
11... Rc8 {[%clk 0:03:12.2]} 12. f4 {[%clk 0:02:57]} 12... Nb4 {[%clk
0:03:13.2]} 13. Bf3 {[%clk 0:02:46.3]} 13... Qb6 {[%clk 0:03:06.6]} 14. Nd4
{[%clk 0:02:11]} 14... Bc4 {[%clk 0:03:07.3]} 15. Re1 {[%clk 0:02:05.6]} 15...
e5 {[%clk 0:03:08.5]} 16. Ndb5 {[%clk 0:01:58.6]} 16... Bxb5 {[%clk 0:02:58.7]}
17. axb5 {[%clk 0:01:49.3]} 17... exf4 {[%clk 0:02:55.6]} 18. Bxf4 {[%clk
0:01:44.7]} 18... Rfd8 {[%clk 0:02:54.1]} 19. Qe2 {[%clk 0:01:41.1]} 19... Nd7
{[%clk 0:02:49.9]} 20. Bg5 {[%clk 0:01:31.6]} 20... Re8 {[%clk 0:02:49.7]} 21.
Be3 {[%clk 0:01:32.5]} 21... Nc5 {[%clk 0:02:49.8]} 22. Na4 {[%clk 0:01:27.2]}
22... Qc7 {[%clk 0:02:44.8]} 23. c3 {[%clk 0:01:21.5]} 23... Nbd3 {[%clk
0:02:45.2]} 24. Red1 {[%clk 0:01:13.9]} 24... Ne5 {[%clk 0:02:44]} 25. Nxc5
{[%clk 0:01:08.6]} 25... dxc5 {[%clk 0:02:45.9]} 26. Rd5 {[%clk 0:01:05.1]}
26... b6 {[%clk 0:02:47.2]} 27. Rad1 {[%clk 0:01:03.6]} 27... Rcd8 {[%clk
0:02:46.5]} 28. Bf4 {[%clk 0:01:00.7]} 28... h5 {[%clk 0:02:44]} 29. Qf2 {[%clk
0:00:53.4]} 29... Rxd5 {[%clk 0:02:39.7]} 30. Rxd5 {[%clk 0:00:53.5]} 30... Qe7
{[%clk 0:02:36.8]} 31. Qg3 {[%clk 0:00:47.5]} 31... Nc4 {[%clk 0:02:16.5]} 32.
Qf2 {[%clk 0:00:44.2]} 32... Rd8 {[%clk 0:02:14.8]} 33. Bg5 {[%clk 0:00:36.7]}
33... Bf6 {[%clk 0:02:13.8]} 34. Bf4 {[%clk 0:00:24.8]} 34... Be5 {[%clk
0:02:14.5]} 35. Bxe5 {[%clk 0:00:15.5]} 35... Rxd5 {[%clk 0:02:12.6]} 36. exd5
{[%clk 0:00:14]} 36... Qxe5 {[%clk 0:02:13.9]} 37. Qe2 {[%clk 0:00:08.3]} 37...
Qxe2 {[%clk 0:02:14.3]} 38. Bxe2 {[%clk 0:00:09.3]} 38... Nd6 {[%clk 0:02:15.9]}
39. Kg1 {[%clk 0:00:09.5]} 39... Kg7 {[%clk 0:02:17.5]} 40. Kf2 {[%clk
0:00:10.7]} 40... Kf6 {[%clk 0:02:19.4]} 41. Ke3 {[%clk 0:00:11.5]} 41... Ke5
{[%clk 0:02:21]} 42. Bf3 {[%clk 0:00:12.7]} 42... h4 {[%clk 0:02:20.7]} 43. h3
{[%clk 0:00:12.4]} 43... Nc4+ {[%clk 0:02:17.5]} 44. Kd3 {[%clk 0:00:09.4]}
44... Nxb2+ {[%clk 0:02:18]} 45. Ke3 {[%clk 0:00:10.3]} 45... Nc4+ {[%clk
0:02:19.3]} 46. Kd3 {[%clk 0:00:11.4]} 46... Nd6 {[%clk 0:02:19.6]} 47. c4
{[%clk 0:00:11.9]} 47... f5 {[%clk 0:02:17.7]} 48. Bd1 {[%clk 0:00:11.6]} 48...
Kf4 {[%clk 0:02:18.1]} 49. Bf3 {[%clk 0:00:09.5]} 49... Kg3 {[%clk 0:02:19.2]}
50. Kc3 {[%clk 0:00:05.5]} 50... g5 {[%clk 0:02:20.5]} 51. Kd3 {[%clk
0:00:06.3]} 51... g4 {[%clk 0:02:22]} 52. hxg4 {[%clk 0:00:07]} 52... fxg4
{[%clk 0:02:23.9]} 53. Bd1 {[%clk 0:00:06]} 53... h3 {[%clk 0:02:24.6]} 54. gxh3
{[%clk 0:00:06.5]} 54... gxh3 {[%clk 0:02:26.5]} 55. Ke3 {[%clk 0:00:06.8]}
55... Nxc4+ {[%clk 0:02:26.3]} 56. Ke4 {[%clk 0:00:06.9]} 56... h2 {[%clk
0:02:27.6]} 57. Bf3 {[%clk 0:00:07.7]} 57... Nd2+ {[%clk 0:02:28.8]} 58. Ke3
{[%clk 0:00:08.8]} 58... Nxf3 {[%clk 0:02:30.7]} 0-1

[Event "*** Titled Tuesday 3|2 Blitz"]
[Site "Chess.com"]
[Date "2017.05.02"]
[Round "2"]
[White "Rodalquilar"]
[Black "Msb2"]
[Result "1-0"]
[WhiteElo "2541"]
[BlackElo "2559"]
[TimeControl "180+2"]
[EndTime "13:20:48 PDT"]
[Termination "Rodalquilar won by resignation"]

1. d4 {[%clk 0:03:02]} 1... Nf6 {[%clk 0:03:00.5]} 2. Bf4 {[%clk 0:03:02.7]}
2... d5 {[%clk 0:03:00.5]} 3. e3 {[%clk 0:03:03.6]} 3... c5 {[%clk 0:03:01.7]}
4. Nf3 {[%clk 0:03:04.9]} 4... Nc6 {[%clk 0:03:03]} 5. Nbd2 {[%clk 0:03:05.7]}
5... cxd4 {[%clk 0:03:04.4]} 6. exd4 {[%clk 0:03:06.8]} 6... Bf5 {[%clk
0:03:06]} 7. c3 {[%clk 0:03:07.7]} 7... e6 {[%clk 0:03:07.6]} 8. Qb3 {[%clk
0:03:08.6]} 8... Qc8 {[%clk 0:03:09.3]} 9. Nh4 {[%clk 0:03:07.6]} 9... Be4
{[%clk 0:03:10.7]} 10. Nhf3 {[%clk 0:03:05.7]} 10... h6 {[%clk 0:03:00.2]} 11.
Nxe4 {[%clk 0:03:02.9]} 11... Nxe4 {[%clk 0:03:02.1]} 12. Bd3 {[%clk 0:02:56.8]}
12... Bd6 {[%clk 0:03:03.3]} 13. Bxd6 {[%clk 0:02:46]} 13... Nxd6 {[%clk
0:03:05.2]} 14. O-O {[%clk 0:02:47.4]} 14... O-O {[%clk 0:03:05.2]} 15. Rfe1
{[%clk 0:02:48.6]} 15... b5 {[%clk 0:03:05.2]} 16. Bxb5 {[%clk 0:02:23.7]} 16...
Rb8 {[%clk 0:02:45]} 17. a4 {[%clk 0:02:24.4]} 17... Qc7 {[%clk 0:02:15.8]} 18.
Ne5 {[%clk 0:01:17.4]} 18... Na5 {[%clk 0:02:16.3]} 19. Qc2 {[%clk 0:01:05.2]}
19... Nxb5 {[%clk 0:02:16.5]} 20. axb5 {[%clk 0:01:06.3]} 20... Rxb5 {[%clk
0:02:18.4]} 21. Ra2 {[%clk 0:01:07.7]} 21... Rfb8 {[%clk 0:02:11.8]} 22. Rea1
{[%clk 0:01:08.5]} 22... Nc6 {[%clk 0:02:12.4]} 23. Nxc6 {[%clk 0:00:46.8]}
23... Qxc6 {[%clk 0:02:14.3]} 24. h3 {[%clk 0:00:16.7]} 24... a5 {[%clk
0:02:12.7]} 25. Qd3 {[%clk 0:00:13.1]} 25... Qb6 {[%clk 0:01:57.6]} 26. g3
{[%clk 0:00:09.2]} 26... Rc8 {[%clk 0:01:44.6]} 27. Qe2 {[%clk 0:00:07.4]} 27...
g6 {[%clk 0:01:40.2]} 28. h4 {[%clk 0:00:08.1]} 28... h5 {[%clk 0:01:41.7]} 29.
Kg2 {[%clk 0:00:09.5]} 29... Rb8 {[%clk 0:01:42.5]} 30. Qe5 {[%clk 0:00:06.1]}
30... Qd8 {[%clk 0:01:03.3]} 31. Rxa5 {[%clk 0:00:05.3]} 31... Rxb2 {[%clk
0:00:58.6]} 32. Ra7 {[%clk 0:00:06.2]} 32... R2b7 {[%clk 0:00:58.9]} 33. Qf4
{[%clk 0:00:06.3]} 33... Kg7 {[%clk 0:00:50.4]} 34. Qe5+ {[%clk 0:00:06.6]}
34... Qf6 {[%clk 0:00:51.2]} 35. Qxf6+ {[%clk 0:00:07.4]} 35... Kxf6 {[%clk
0:00:53.1]} 36. Rxb7 {[%clk 0:00:08.9]} 36... Rxb7 {[%clk 0:00:55]} 37. Rc1
{[%clk 0:00:09.6]} 37... Rc7 {[%clk 0:00:54.7]} 38. Kf3 {[%clk 0:00:11.1]} 38...
Ra7 {[%clk 0:00:55.1]} 39. c4 {[%clk 0:00:09.5]} 39... Ra3+ {[%clk 0:00:56.1]}
40. Kf4 {[%clk 0:00:10.4]} 40... dxc4 {[%clk 0:00:56.5]} 41. Rxc4 {[%clk
0:00:11.5]} 41... Rc3 {[%clk 0:00:57.8]} 42. Rxc3 {[%clk 0:00:12.2]} 42... Kg7
{[%clk 0:00:58.2]} 43. Ke5 {[%clk 0:00:12.9]} 1-0

[Event "*** Titled Tuesday 3|2 Blitz"]
[Site "Chess.com"]
[Date "2017.05.02"]
[Round "2"]
[White "Abrito99"]
[Black "Vamostodorecto"]
[Result "1-0"]
[WhiteElo "2277"]
[BlackElo "2350"]
[TimeControl "180+2"]
[EndTime "13:21:01 PDT"]
[Termination "Abrito99 won by checkmate"]

1. e4 {[%clk 0:03:02]} 1... e5 {[%clk 0:03:00.3]} 2. Nf3 {[%clk 0:03:02.4]} 2...
Nc6 {[%clk 0:03:01]} 3. Bc4 {[%clk 0:03:03.9]} 3... Nf6 {[%clk 0:03:01.1]} 4. d3
{[%clk 0:03:04.8]} 4... Be7 {[%clk 0:03:02.2]} 5. O-O {[%clk 0:03:05.1]} 5...
O-O {[%clk 0:03:03.2]} 6. a4 {[%clk 0:03:06.8]} 6... d6 {[%clk 0:03:04]} 7. Re1
{[%clk 0:03:08]} 7... Kh8 {[%clk 0:03:03.7]} 8. Nc3 {[%clk 0:03:02.1]} 8... Ng8
{[%clk 0:03:01.8]} 9. d4 {[%clk 0:03:03.3]} 9... Bg4 {[%clk 0:02:47.9]} 10. dxe5
{[%clk 0:03:01]} 10... Nxe5 {[%clk 0:02:44.5]} 11. Be2 {[%clk 0:03:01.8]} 11...
Nxf3+ {[%clk 0:02:28.4]} 12. Bxf3 {[%clk 0:03:03.7]} 12... Be6 {[%clk
0:02:27.5]} 13. Nd5 {[%clk 0:03:03.1]} 13... c6 {[%clk 0:02:28]} 14. Nf4 {[%clk
0:02:56.8]} 14... Nf6 {[%clk 0:02:16.2]} 15. Nxe6 {[%clk 0:02:43.4]} 15... fxe6
{[%clk 0:02:16.5]} 16. e5 {[%clk 0:02:44.8]} 16... Nd5 {[%clk 0:02:10.2]} 17.
exd6 {[%clk 0:02:43.5]} 17... Bxd6 {[%clk 0:02:08.2]} 18. Rxe6 {[%clk
0:02:27.3]} 18... Qc7 {[%clk 0:02:07.9]} 19. Rxd6 {[%clk 0:02:24.5]} 19... Qxd6
{[%clk 0:02:06.8]} 20. c4 {[%clk 0:02:25.6]} 20... Rxf3 {[%clk 0:01:52.3]} 21.
Qxf3 {[%clk 0:02:20.7]} 21... Rf8 {[%clk 0:01:35.7]} 22. Qe2 {[%clk 0:02:16.5]}
22... Nc7 {[%clk 0:01:22.9]} 23. Be3 {[%clk 0:02:13.9]} 23... b6 {[%clk
0:01:19.7]} 24. a5 {[%clk 0:02:01.4]} 24... c5 {[%clk 0:01:19]} 25. h4 {[%clk
0:02:00]} 25... Ne6 {[%clk 0:01:18.2]} 26. axb6 {[%clk 0:01:57]} 26... axb6
{[%clk 0:01:20.1]} 27. Ra7 {[%clk 0:01:50.1]} 27... Qe5 {[%clk 0:01:18.5]} 28.
Qg4 {[%clk 0:01:46.8]} 28... h5 {[%clk 0:01:12.8]} 29. Qg6 {[%clk 0:01:44]}
29... Rf6 {[%clk 0:01:03.3]} 30. Qe8+ {[%clk 0:00:51.2]} 30... Rf8 {[%clk
0:00:57.2]} 31. Qg6 {[%clk 0:00:52]} 31... Rf6 {[%clk 0:00:57.9]} 32. Qe8+
{[%clk 0:00:49.7]} 32... Rf8 {[%clk 0:00:58.6]} 33. Qe7 {[%clk 0:00:50.8]} 33...
Qf5 {[%clk 0:00:51.3]} 34. Rd7 {[%clk 0:00:48.3]} 34... Rf6 {[%clk 0:00:43.5]}
35. Rb7 {[%clk 0:00:44.1]} 35... Rg6 {[%clk 0:00:37.5]} 36. Rb8+ {[%clk
0:00:42.4]} 36... Kh7 {[%clk 0:00:36.9]} 37. Qe8 {[%clk 0:00:40.1]} 37... Rxg2+
{[%clk 0:00:21]} 38. Kf1 {[%clk 0:00:31]} 38... Qh3 {[%clk 0:00:16.9]} 39. Qxh5#
{[%clk 0:00:30.9]} 1-0

[Event "*** Titled Tuesday 3|2 Blitz"]
[Site "Chess.com"]
[Date "2017.05.02"]
[Round "2"]
[White "andreimacovei2000"]
[Black "JSMastropiero"]
[Result "0-1"]
[WhiteElo "2347"]
[BlackElo "2220"]
[TimeControl "180+2"]
[EndTime "13:21:07 PDT"]
[Termination "JSMastropiero won by checkmate"]

1. e4 {[%clk 0:02:59.1]} 1... e6 {[%clk 0:02:58.7]} 2. d3 {[%clk 0:02:58.9]}
2... c5 {[%clk 0:02:58.4]} 3. g3 {[%clk 0:02:58.4]} 3... Nc6 {[%clk 0:02:58.9]}
4. Nf3 {[%clk 0:02:58]} 4... g6 {[%clk 0:02:59.3]} 5. Bg2 {[%clk 0:02:58.9]}
5... Bg7 {[%clk 0:03:00.1]} 6. O-O {[%clk 0:03:00.3]} 6... Nge7 {[%clk
0:03:00.8]} 7. c3 {[%clk 0:02:58.6]} 7... d5 {[%clk 0:03:01.4]} 8. e5 {[%clk
0:02:58.6]} 8... Nxe5 {[%clk 0:02:47.4]} 9. Nxe5 {[%clk 0:02:44.5]} 9... Bxe5
{[%clk 0:02:49.3]} 10. d4 {[%clk 0:02:45.8]} 10... cxd4 {[%clk 0:02:46.2]} 11.
cxd4 {[%clk 0:02:47.7]} 11... Bg7 {[%clk 0:02:46.8]} 12. Nc3 {[%clk 0:02:48.2]}
12... Nc6 {[%clk 0:02:45.2]} 13. Be3 {[%clk 0:02:48.8]} 13... O-O {[%clk
0:02:44.3]} 14. Qd2 {[%clk 0:02:49.8]} 14... b6 {[%clk 0:02:42.2]} 15. Rfc1
{[%clk 0:02:47]} 15... Na5 {[%clk 0:02:36.9]} 16. b3 {[%clk 0:02:47.1]} 16...
Ba6 {[%clk 0:02:33.7]} 17. Ne2 {[%clk 0:02:43.5]} 17... Qd7 {[%clk 0:02:28.1]}
18. Nf4 {[%clk 0:02:44.6]} 18... Rac8 {[%clk 0:02:26.4]} 19. Nd3 {[%clk
0:02:44.9]} 19... Rxc1+ {[%clk 0:02:11.2]} 20. Rxc1 {[%clk 0:02:46.8]} 20... Rc8
{[%clk 0:02:12.4]} 21. Ne5 {[%clk 0:02:45]} 21... Qe8 {[%clk 0:02:08.5]} 22. Rc3
{[%clk 0:02:41.8]} 22... Bf8 {[%clk 0:02:05.1]} 23. Qc1 {[%clk 0:02:37.9]} 23...
Bb4 {[%clk 0:02:03.6]} 24. Rc2 {[%clk 0:02:34.9]} 24... Rxc2 {[%clk 0:02:02.7]}
25. Qxc2 {[%clk 0:02:35.6]} 25... Qc8 {[%clk 0:02:04.1]} 26. Qd1 {[%clk
0:02:28.7]} 26... Nc6 {[%clk 0:02:02.2]} 27. Ng4 {[%clk 0:02:25.5]} 27... h5
{[%clk 0:01:45.1]} 28. Nf6+ {[%clk 0:02:25.1]} 28... Kg7 {[%clk 0:01:46]} 29.
Bg5 {[%clk 0:01:52.9]} 29... Be7 {[%clk 0:01:43.6]} 30. Qf3 {[%clk 0:01:31.6]}
30... Qd8 {[%clk 0:01:40.3]} 31. Nxh5+ {[%clk 0:01:27.9]} 31... gxh5 {[%clk
0:01:39.4]} 32. Bxe7 {[%clk 0:01:27.8]} 32... Qxe7 {[%clk 0:01:35.5]} 33. Qxh5
{[%clk 0:01:23.8]} 33... Qf6 {[%clk 0:01:35.9]} 34. h4 {[%clk 0:01:21.6]} 34...
Bd3 {[%clk 0:01:26.4]} 35. Qg4+ {[%clk 0:01:19.2]} 35... Qg6 {[%clk 0:01:24.2]}
36. Qf4 {[%clk 0:01:19.8]} 36... Qf5 {[%clk 0:01:18.6]} 37. Qe3 {[%clk
0:01:15.8]} 37... Bb1 {[%clk 0:01:13.3]} 38. Qc1 {[%clk 0:01:15.4]} 38... Nxd4
{[%clk 0:01:11.1]} 39. Qb2 {[%clk 0:01:15.4]} 39... e5 {[%clk 0:01:11.2]} 40.
Bxd5 {[%clk 0:01:13]} 40... Be4 {[%clk 0:01:08.4]} 41. Bxe4 {[%clk 0:01:04.7]}
41... Qxe4 {[%clk 0:01:08.2]} 42. b4 {[%clk 0:01:01.3]} 42... Nf3+ {[%clk
0:00:54.6]} 43. Kf1 {[%clk 0:01:01.6]} 43... Qd3+ {[%clk 0:00:50.8]} 44. Kg2
{[%clk 0:01:01.1]} 44... Nd4 {[%clk 0:00:48.2]} 45. a4 {[%clk 0:00:53.2]} 45...
Qf3+ {[%clk 0:00:48.7]} 46. Kg1 {[%clk 0:00:49.3]} 46... Ne2+ {[%clk 0:00:48.1]}
47. Kf1 {[%clk 0:00:49.9]} 47... Nxg3+ {[%clk 0:00:49.1]} 48. Kg1 {[%clk
0:00:49.2]} 48... Qh1# {[%clk 0:00:48.7]} 0-1